[Event "Mitropa Cup Women 2024"]
[Site "Apolda"]
[Date "2024.02.16"]
[Round "2.8"]
[White "Fizerova, Lucie"]
[Black "Karacsonyi, Kata"]
[Result "0-1"]
[ECO "B52"]
[WhiteElo "1794"]
[BlackElo "2087"]
[Annotator "NA RC"]
[PlyCount "154"]
[EventDate "2024.02.15"]
[EventType "team-tourn"]
[EventCountry "GER"]
[SourceTitle "playchess.com"]
[Source "ChessBase"]
[SourceQuality "1"]
[WhiteTeam "Czech Republic"]
[BlackTeam "Hungary"]
[WhiteTeamCountry "CZE"]
[BlackTeamCountry "HUN"]
[TimeControl "40/5400+30:1800+30"]

1. e4 {[%emt 0:00:06]} c5 {[%emt 0:00:15]} 2. Nf3 {[%emt 0:00:13]} d6 {[%emt 0:00:07]} 3. Bb5+ {[%emt 0:00:22]} Bd7 {[%emt 0:00:35]} 4. Bxd7+ {[%emt 0:00:27]} Qxd7 {[%emt 0:00:09]} 5. c4 {[%emt 0:00:23]} Nc6 {[%emt 0:01:04]} 6. Nc3 {[%emt 0:00:39]} g6 {[%emt 0:01:58]} 7. d4 {[%emt 0:03:47]} cxd4 {[%emt 0:00:39]} 8. Nxd4 {[%emt 0:00:12]} Bg7 {[%emt 0:00:20]} 9. Be3 {[%emt 0:00:45]} Nf6 {[%emt 0:01:34]} 10. f3 {[%emt 0:01:14]} O-O {[%emt 0:01:27]} 11. O-O {[%emt 0:01:05]} Rac8 {[%emt 0:12:23]} 12. b3 {[%emt 0:04:48]} a6 {[%emt 0:07:05]} 13. a4 {[%emt 0:06:18]} Qc7 {[%emt 0:05:23]} 14. Rc1 {[%emt 0:02:40]} Qa5 {[%emt 0:09:26]} 15. Re1 {[%emt 0:09:30]} Rfe8 {[%emt 0:09:27]} 16. Nde2 {[%emt 0:10:22]} h5 {[%emt 0:10:23]} 17. Qd2 {[%emt 0:05:07]} Nd7 {[%emt 0:02:10]} 18. Nd5 {[%emt 0:05:51]} Qxd2 {[%emt 0:03:19]} 19. Bxd2 {[%emt 0:00:12]} e6 {[%emt 0:04:37]} 20. Ndf4 {[%emt 0:04:29]} Nc5 {[%emt 0:00:57]} 21. Rb1 {[%emt 0:02:12]} Rb8 {[%emt 0:05:13]} 22. Be3 {[%emt 0:03:42]} b5 {[%emt 0:03:09]} 23. axb5 {[%emt 0:01:49]} axb5 {[%emt 0:00:08]} 24. Red1 {[%emt 0:03:49]} Be5 {[%emt 0:02:41]} 25. b4 {[%emt 0:03:31]} Na6 {[%emt 0:02:32]} 26. Nd3 {[%emt 0:05:19]} bxc4 {[%emt 0:02:15]} 27. Nxe5 {[%emt 0:01:03]} Nxe5 {[%emt 0:00:06]} 28. b5 {[%emt 0:00:26]} Nc5 {[%emt 0:03:51]} 29. Rxd6 {[%emt 0:00:50]} Rec8 {[%emt 0:04:43]} 30. Nc3 {[%emt 0:04:38]} Nb7 {[%emt 0:01:15]} 31. Ra6 {[%emt 0:02:57]} Nd3 {[%emt 0:01:13]} 32. Ba7 {[%emt 0:01:56]} Ra8 {[%emt 0:00:13]} 33. Be3 {[%emt 0:00:54]} Nbc5 {[%emt 0:01:25]} 34. Rxa8 {[%emt 0:01:43]} Rxa8 {[%emt 0:00:04]} 35. b6 {[%emt 0:01:54]} Nb7 {[%emt 0:01:13]} 36. Nb5 {[%emt 0:03:35]} Ra2 {[%emt 0:00:33]} 37. Bg5 {[%emt 0:02:35]} Kg7 {[%emt 0:00:55]} 38. Be7 {[%emt 0:00:44]} Nf4 {[%emt 0:01:50]} 39. g3 {[%emt 0:04:45]} Ne2+ {[%emt 0:01:26]} 40. Kf1 {[%emt 0:00:58]} c3 {[%emt 0:00:50]} 41. Bg5 {[%emt 0:32:36]} c2 {[%emt 0:17:55]} 42. Re1 {[%emt 0:00:00]} Nxg3+ {[%emt 0:00:51]} 43. hxg3 {[%emt 0:00:00]} Ra5 {[%emt 0:00:15]} 44. Nd4 {[%emt 0:00:00]} Rxg5 {[%emt 0:00:11]} 45. Kg2 {[%emt 0:00:00]} Rc5 {[%emt 0:01:21]} 46. Rc1 {[%emt 0:00:00]} e5 {[%emt 0:00:35]} 47. Nxc2 {[%emt 0:00:00]} Rc6 {[%emt 0:03:57]} 48. Kf1 {[%emt 0:00:00]} Kf6 {[%emt 0:02:53]} 49. Ke2 {[%emt 0:00:00]} Na5 {[%emt 0:03:03]} 50. Kd1 {[%emt 0:00:00]} Rxb6 {[%emt 0:00:47]} 51. Ne3 {[%emt 0:00:00]} Rb3 {[%emt 0:01:39]} 52. Nd5+ {[%emt 0:00:00]} Kg7 {[%emt 0:00:08]} 53. Rc3 {[%emt 0:00:00]} Rxc3 {[%emt 0:00:12]} 54. Nxc3 {[%emt 0:00:00]} Nc6 {[%emt 0:00:46]} 55. Kd2 {[%emt 0:00:00]} g5 {[%emt 0:01:33]} 56. Ke3 {[%emt 0:00:13]} Kg6 {[%emt 0:00:24]} 57. Ne2 {[%emt 0:02:37]} h4 {[%emt 0:01:39]} 58. gxh4 {[%emt 0:01:09]} gxh4 {[%emt 0:00:01]} 59. f4 {[%emt 0:00:57]} Kh5 {[%emt 0:00:37]} 60. fxe5 {[%emt 0:01:32]} Kg4 {[%emt 0:00:17]} 61. Nf4 {[%emt 0:02:13]} Nxe5 {[%emt 0:00:55]} 62. Ne2 {[%emt 0:00:56]} h3 {[%emt 0:01:23]} 63. Kf2 {[%emt 0:00:14]} Nd3+ {[%emt 0:00:28]} 64. Kg1 {[%emt 0:00:50]} Kf3 {[%emt 0:01:05]} 65. Nc3 {[%emt 0:00:38]} Kg3 {[%emt 0:00:06]} 66. Ne2+ {[%emt 0:00:07]} Kf3 {[%emt 0:00:08]} 67. Nc3 {[%emt 0:00:04]} Nf2 {[%emt 0:00:53]} 68. Kh2 {[%emt 0:01:50]} Nxe4 {[%emt 0:00:06]} 69. Nd5 {[%emt 0:00:16]} Ng5 {[%emt 0:00:06]} 70. Nf6 {[%emt 0:00:33]} Kf4 {[%emt 0:00:07]} 71. Nd5+ {[%emt 0:00:36]} Ke5 {[%emt 0:00:09]} 72. Ne3 {[%emt 0:00:15]} f5 {[%emt 0:00:14]} 73. Nc4+ {[%emt 0:00:58]} Kd4 {[%emt 0:00:18]} 74. Nd2 {[%emt 0:00:05]} f4 {[%emt 0:00:08]} 75. Nf1 {[%emt 0:00:13]} Kd3 {[%emt 0:00:15]} 76. Kg1 {[%emt 0:00:15]} Ke2 {[%emt 0:00:06]} 77. Nh2 {[%emt 0:00:10]} Nf3+ {[%emt 0:00:07]} 0-1

[Event "Mitropa Cup Women 2024"]
[Site "Apolda"]
[Date "2024.02.16"]
[Round "2.9"]
[White "Brunello, Marina"]
[Black "Urh, Zala"]
[Result "1-0"]
[ECO "B36"]
[WhiteElo "2345"]
[BlackElo "2290"]
[Annotator "TA"]
[PlyCount "75"]
[EventDate "2024.02.15"]
[EventType "team-tourn"]
[EventCountry "GER"]
[SourceTitle "playchess.com"]
[Source "ChessBase"]
[SourceQuality "1"]
[WhiteTeam "Italy"]
[BlackTeam "Slovenia"]
[WhiteTeamCountry "ITA"]
[BlackTeamCountry "SLO"]
[TimeControl "40/5400+30:1800+30"]

{[%evp 18,75,41,45,41,16,18,31,15,12,19,9,93,109,96,95,110,72,48,67,124,113,119,119,191,204,215,207,192,229,401,418,456,370,378,377,364,350,741,689,942,936,1616,1066,7391,1116,2620,2374,29990,1551,1767,1714,1649,1090,2375,2314,2897,2112,29986,29984]} 1. e4 {[%emt 0:00:04]} c5 {[%emt 0:00:10]} 2. Nf3 {[%emt 0:00:08]} Nc6 {[%emt 0:00:11]} 3. d4 {[%emt 0:00:13]} cxd4 {[%emt 0:00:05]} 4. Nxd4 {[%emt 0:00:09]} g6 {[%emt 0:00:27]} 5. c4 {[%emt 0:00:51]} Nf6 {[%emt 0:00:32]} 6. Nc3 {[%emt 0:00:12][%cal Bb1c3,Bc3b5,Bb5d4][%mdl 32]} Nxd4 {[%emt 0:00:21]} 7. Qxd4 {[%emt 0:00:06]} d6 {[%emt 0:00:13]} 8. Be3 {[%emt 0:05:59]} Bg7 {[%emt 0:00:24]} 9. f3 {[%emt 0:00:15]} O-O {[%emt 0:00:31]} 10. Qd2 {[%emt 0:00:02]} Be6 {[%emt 0:01:56]} 11. Nb5 {[%emt 0:02:57][%cal Oa1c1]} a6 {[%emt 0:10:56]} 12. Nd4 {[%emt 0:00:13]} Bd7 {[%emt 0:00:05] White is slightly better.} 13. Be2 {[%emt 0:04:31][%cal Bf1e2,Be2b5,Bb5c6][%mdl 32]} b5 {[%emt 0:25:07]} 14. cxb5 {[%emt 0:33:54]} d5 {[%emt 0:01:42]} (14... axb5 $11 15. O-O Qb8) 15. e5 $16 {[%emt 0:02:56]} (15. bxa6 dxe4 16. Nb3 exf3 17. gxf3 e6 $11) 15... Ne8 {[%emt 0:00:15]} 16. f4 {[%emt 0:00:30] White has more active pieces. The black rooks are passive.} axb5 {[%emt 0:02:20]} 17. Nxb5 {[%emt 0:05:32]} Bxb5 {[%emt 0:05:04]} 18. Bxb5 {[%emt 0:00:24] Black must now prevent Bc6.} Nc7 {[%emt 0:00:03] White leaves nothing to chance now.} (18... d4 $14 19. Bxd4 Qd5 20. Bxe8 (20. a4 Nc7 $11) 20... Rfxe8) 19. Bc6 $36 {[%emt 0:04:44][%mdl 2048] Black is under strong pressure.} Ra6 {[%emt 0:04:12]} 20. Rc1 {[%emt 0:03:35]} Qb8 {[%emt 0:08:42] [#] Black is weak on the dark squares} (20... Rxa2 $16 21. Bb6 Bh6) 21. b4 $1 $18 {[%emt 0:00:22][%cal Bb2b4,Bb4b5,Bb5b6][%mdl 32]} (21. Bxd5 $2 Rd8 22. Rc5 e6 $19) 21... Rd8 {[%emt 0:02:15][%cal Od5d4]} 22. O-O {[%emt 0:06:02]} d4 {[%emt 0:08:05] [#]} 23. Bf2 {[%emt 0:00:07]} (23. Bxd4 $2 Ne6 24. Qd3 (24. Qe2 $2 Rxc6 25. Be3 Rxc1 $19) 24... Rb6 $19 (24... Rxd4 $2 25. Qxa6 Qxb4 26. Kh1 $18)) 23... f6 $2 {[%emt 0:00:04]} (23... g5 24. f5 (24. fxg5 d3 $18) 24... Bxe5) 24. a4 {[%emt 0:01:29]} (24. Bxd4 fxe5 25. fxe5 Ne6 $11 (25... Bxe5 26. Rf8+ Rxf8 27. Bxe5 $11)) 24... fxe5 {[%emt 0:14:34]} 25. fxe5 {[%emt 0:03:01]} Bxe5 {[%emt 0:03:36][%cal Bg7e5,Be5h2,Bh2d6][%mdl 32]} 26. b5 {[%emt 0:04:56]} (26. Qa2+ Kg7 $14) 26... Rxa4 {[%emt 0:07:44][%cal Oc7d5]} 27. b6 {[%emt 0:00:33]} Ra3 $2 {[%emt 0:00:05]} (27... Ra6 28. bxc7 Bxc7) 28. Qb4 {[%emt 0:09:09]} Nb5 {[%emt 0:04:01]} 29. Bxb5 {[%emt 0:01:24] This pair of bishops is nice.} Bxh2+ {[%emt 0:00:07]} 30. Kh1 {[%emt 0:00:03]} Bd6 {[%emt 0:00:01]} 31. Qc4+ {[%emt 0:00:29]} (31. Bxd4 $142 Be5 32. Bc4+ (32. Qxa3 e6 33. Bxe5 Qxe5 34. Qe7 Qd6 35. Qf7+ Kh8 36. Rc7 Qxc7 37. bxc7 Rc8 38. Be8 h5 39. Qf8+ Kh7 40. Rf7#) (32. Qxe7 Rxd4 33. b7 Rh4+ 34. Qxh4 Qd6 35. Qc4+ Kh8 36. Rf7 Bg7) 32... Kh8 33. Qxe7 (33. Qxa3 Bxd4 34. Rf7 Qe5 $18) (33. Bxe5+ Qxe5 34. Qxa3 Qe4 $18) 33... Bxd4 34. Rf7 (34. Qxa3 Bg7 $18) 34... Bg7 35. Rxg7 (35. Qxa3 Qe5 $18) 35... Rd1+ 36. Rxd1) 31... Kh8 {[%emt 0:00:35]} 32. Bxd4+ {[%emt 0:01:29]} e5 {[%emt 0:01:14]} 33. Bf2 {[%emt 0:00:58]} (33. Qe6 $142 Bf8 34. Rxf8+ (34. Qxe5+ Qxe5 35. Rxf8+ Kg7 $18) 34... Rxf8 35. Bxe5+ Qxe5 36. Qxe5+ Kg8 37. Rc7 (37. Bc4+ Rf7 38. b7 Rb3 39. Bxb3 h6 40. b8=Q+ Kh7 41. Qeh8#) 37... Rh3+ 38. gxh3 Rf7 39. Rc8+ Rf8 40. Bc4#) 33... Qb7 {[%emt 0:00:31]} 34. Bc6 {[%emt 0:00:31]} Qg7 {[%emt 0:00:04]} 35. Be4 {[%emt 0:00:32] Strongly threatening b7.} Qh6+ {[%emt 0:01:11]} 36. Kg1 {[%emt 0:00:04]} Qg5 {[%emt 0:00:23]} 37. Rcd1 {[%emt 0:01:55][%cal Od1d6] Hoping for Rxd6!} h5 {[%emt 0:00:33]} 38. b7 {[%emt 0:00:23] Weighted Error Value: White=0.14 (very precise) /Black=1.06.  Mistake:       	---       	Black=5      Inaccurate:     	White=1     	Black=1      OK:         	White=11    	Black=7      Best:        	White=2     	Black=1} 1-0

[Event "Mitropa Cup Women 2024"]
[Site "Apolda"]
[Date "2024.02.16"]
[Round "2.10"]
[White "Shpanko, Nadiia"]
[Black "Zimina, Olga"]
[Result "1/2-1/2"]
[ECO "A11"]
[WhiteElo "2179"]
[BlackElo "2291"]
[Annotator "NA RC"]
[PlyCount "60"]
[EventDate "2024.02.15"]
[EventType "team-tourn"]
[EventCountry "GER"]
[SourceTitle "playchess.com"]
[Source "ChessBase"]
[SourceQuality "1"]
[WhiteTeam "Slovenia"]
[BlackTeam "Italy"]
[WhiteTeamCountry "SLO"]
[BlackTeamCountry "ITA"]
[TimeControl "40/5400+30:1800+30"]

1. c4 {[%emt 0:00:03]} c6 {[%emt 0:00:06]} 2. Nf3 {[%emt 0:00:45]} d5 {[%emt 0:00:06]} 3. e3 {[%emt 0:00:32]} Nf6 {[%emt 0:00:06]} 4. Nc3 {[%emt 0:00:37]} a6 {[%emt 0:00:14]} 5. Be2 {[%emt 0:02:31]} Bg4 {[%emt 0:01:12]} 6. Qb3 {[%emt 0:02:00]} Ra7 {[%emt 0:01:34]} 7. h3 {[%emt 0:01:06]} Bxf3 {[%emt 0:04:01]} 8. Bxf3 {[%emt 0:00:11]} e6 {[%emt 0:00:04]} 9. O-O {[%emt 0:04:12]} Nbd7 {[%emt 0:03:29]} 10. d4 {[%emt 0:02:30]} Bd6 {[%emt 0:01:51]} 11. cxd5 {[%emt 0:01:33]} exd5 {[%emt 0:03:00]} 12. e4 {[%emt 0:01:25]} dxe4 {[%emt 0:02:23]} 13. Nxe4 {[%emt 0:01:22]} Nxe4 {[%emt 0:00:22]} 14. Bxe4 {[%emt 0:00:05]} Nf6 {[%emt 0:02:22]} 15. Bf3 {[%emt 0:01:43]} O-O {[%emt 0:00:41]} 16. Bg5 {[%emt 0:04:00]} h6 {[%emt 0:03:14]} 17. Bd2 {[%emt 0:07:56]} Qd7 {[%emt 0:03:44]} 18. Rad1 {[%emt 0:03:08]} Raa8 {[%emt 0:02:16]} 19. Ba5 {[%emt 0:03:21]} Nd5 {[%emt 0:12:43]} 20. Bxd5 {[%emt 0:00:41]} cxd5 {[%emt 0:00:05]} 21. Bb4 {[%emt 0:00:22]} Bxb4 {[%emt 0:07:43]} 22. Qxb4 {[%emt 0:00:05]} Qb5 {[%emt 0:00:37]} 23. Qd2 {[%emt 0:04:50]} Rfe8 {[%emt 0:07:37]} 24. Rfe1 {[%emt 0:00:14]} Rxe1+ {[%emt 0:00:37]} 25. Rxe1 {[%emt 0:00:05]} Re8 {[%emt 0:00:07]} 26. b3 {[%emt 0:01:27]} Rxe1+ {[%emt 0:02:38]} 27. Qxe1 {[%emt 0:00:07]} Qc6 {[%emt 0:00:08]} 28. Qe3 {[%emt 0:00:36]} b5 {[%emt 0:01:07]} 29. b4 {[%emt 0:00:20]} Kf8 {[%emt 0:00:37]} 30. a3 {[%emt 0:00:10]} Kg8 {[%emt 0:00:39]} 1/2-1/2

[Event "Mitropa Cup Women 2024"]
[Site "Apolda"]
[Date "2024.02.16"]
[Round "2.11"]
[White "Gueci, Tea"]
[Black "Vidic, Teja"]
[Result "0-1"]
[ECO "C47"]
[WhiteElo "2193"]
[BlackElo "2132"]
[Annotator "NA RC"]
[PlyCount "116"]
[EventDate "2024.02.15"]
[EventType "team-tourn"]
[EventCountry "GER"]
[SourceTitle "playchess.com"]
[Source "ChessBase"]
[SourceQuality "1"]
[WhiteTeam "Italy"]
[BlackTeam "Slovenia"]
[WhiteTeamCountry "ITA"]
[BlackTeamCountry "SLO"]
[TimeControl "40/5400+30:1800+30"]

1. e4 {[%emt 0:00:01]} e5 {[%emt 0:00:06]} 2. Nf3 {[%emt 0:00:03]} Nc6 {[%emt 0:00:09]} 3. Nc3 {[%emt 0:00:04]} Nf6 {[%emt 0:00:07]} 4. h3 {[%emt 0:00:03]} Bb4 {[%emt 0:00:52]} 5. Nd5 {[%emt 0:00:14]} O-O {[%emt 0:08:03]} 6. Nxb4 {[%emt 0:05:33]} Nxb4 {[%emt 0:00:06]} 7. c3 {[%emt 0:01:10]} Nc6 {[%emt 0:00:04]} 8. Qc2 {[%emt 0:05:32]} d5 {[%emt 0:06:22]} 9. d3 {[%emt 0:00:04]} h6 {[%emt 0:00:04]} 10. Be2 {[%emt 0:03:30]} dxe4 {[%emt 0:08:55]} 11. dxe4 {[%emt 0:00:21]} Nh5 {[%emt 0:00:07]} 12. O-O {[%emt 0:09:19]} Qf6 {[%emt 0:00:12]} 13. Rd1 {[%emt 0:17:29]} Ne7 {[%emt 0:02:04]} 14. Nd4 {[%emt 0:08:23]} Nf4 {[%emt 0:14:05]} 15. Bxf4 {[%emt 0:01:23]} Qxf4 {[%emt 0:00:07]} 16. Nb5 {[%emt 0:01:00]} c6 {[%emt 0:11:39]} 17. Nd6 {[%emt 0:00:29]} f5 {[%emt 0:02:48]} 18. Bc4+ {[%emt 0:11:00]} Kh7 {[%emt 0:07:10]} 19. g3 {[%emt 0:03:42]} Qg5 {[%emt 0:00:06]} 20. Nxc8 {[%emt 0:06:20]} Raxc8 {[%emt 0:00:18]} 21. exf5 {[%emt 0:01:24]} Nxf5 {[%emt 0:02:45]} 22. Be6 {[%emt 0:05:22]} Rce8 {[%emt 0:00:21]} 23. Bd7 {[%emt 0:05:28]} Re7 {[%emt 0:00:42]} 24. Qe4 {[%emt 0:03:01]} g6 {[%emt 0:06:15]} 25. Bxf5 {[%emt 0:02:12]} gxf5 {[%emt 0:00:42]} 26. Qb4 {[%emt 0:01:02]} e4 {[%emt 0:02:28]} 27. h4 {[%emt 0:01:04]} Qg7 {[%emt 0:00:25]} 28. Re1 {[%emt 0:02:23]} b6 {[%emt 0:07:53]} 29. Rad1 {[%emt 0:02:13]} c5 {[%emt 0:00:18]} 30. Qc4 {[%emt 0:01:00]} f4 {[%emt 0:03:38]} 31. Rxe4 {[%emt 0:00:39]} fxg3 {[%emt 0:00:05]} 32. f4 {[%emt 0:00:47]} Ref7 {[%emt 0:03:22]} 33. Qe6 {[%emt 0:01:18]} Rf6 {[%emt 0:05:11]} 34. Rd7 {[%emt 0:02:17]} Rxe6 {[%emt 0:00:28]} 35. Rxg7+ {[%emt 0:00:03]} Kxg7 {[%emt 0:00:08]} 36. Rxe6 {[%emt 0:00:02]} Rxf4 {[%emt 0:00:13]} 37. h5 {[%emt 0:01:23]} Rf2 {[%emt 0:04:36]} 38. b4 {[%emt 0:01:22]} cxb4 {[%emt 0:01:38]} 39. Rg6+ {[%emt 0:00:18]} Kh7 {[%emt 0:00:39]} 40. cxb4 {[%emt 0:00:43]} Rxa2 {[%emt 0:00:13]} 41. Rxg3 {[%emt 0:01:48]} Ra4 {[%emt 0:08:02]} 42. b5 {[%emt 0:11:02]} Rh4 {[%emt 0:03:28]} 43. Ra3 {[%emt 0:02:40]} Rxh5 {[%emt 0:00:06]} 44. Rxa7+ {[%emt 0:00:04]} Kg6 {[%emt 0:00:06]} 45. Ra8 {[%emt 0:01:47]} Rxb5 {[%emt 0:00:06]} 46. Rg8+ {[%emt 0:00:06]} Kf5 {[%emt 0:05:11]} 47. Kf2 {[%emt 0:01:37]} Ke4 {[%emt 0:01:37]} 48. Re8+ {[%emt 0:03:11]} Re5 {[%emt 0:00:36]} 49. Rh8 {[%emt 0:00:32]} h5 {[%emt 0:00:07]} 50. Ke2 {[%emt 0:00:02]} b5 {[%emt 0:00:34]} 51. Kd2 {[%emt 0:00:12]} Kd4 {[%emt 0:02:39]} 52. Kc2 {[%emt 0:00:27]} Kc4 {[%emt 0:00:22]} 53. Rc8+ {[%emt 0:00:30]} Kb4 {[%emt 0:01:10]} 54. Rh8 {[%emt 0:01:00]} Kc4 {[%emt 0:00:41]} 55. Rc8+ {[%emt 0:00:24]} Rc5 {[%emt 0:00:04]} 56. Rh8 {[%emt 0:01:09]} Kd4+ {[%emt 0:03:11]} 57. Kb3 {[%emt 0:01:17]} Ke4 {[%emt 0:00:14]} 58. Rf8 {[%emt 0:01:27]} Rf5 {[%emt 0:00:05]} 0-1

[Event "Mitropa Cup Women 2024"]
[Site "Apolda"]
[Date "2024.02.16"]
[Round "2.12"]
[White "Mihelic, Vesna"]
[Black "Sala, Giulia"]
[Result "1-0"]
[ECO "B30"]
[WhiteElo "2112"]
[BlackElo "2035"]
[Annotator "NA RC"]
[PlyCount "87"]
[EventDate "2024.02.15"]
[EventType "team-tourn"]
[EventCountry "GER"]
[SourceTitle "playchess.com"]
[Source "ChessBase"]
[SourceQuality "1"]
[WhiteTeam "Slovenia"]
[BlackTeam "Italy"]
[WhiteTeamCountry "SLO"]
[BlackTeamCountry "ITA"]
[TimeControl "40/5400+30:1800+30"]

1. e4 {[%emt 0:00:03]} c5 {[%emt 0:00:07]} 2. Nf3 {[%emt 0:00:06]} Nc6 {[%emt 0:00:10]} 3. Bb5 {[%emt 0:00:09]} e5 {[%emt 0:00:07]} 4. Bxc6 {[%emt 0:00:43]} dxc6 {[%emt 0:00:12]} 5. O-O {[%emt 0:02:14]} Qc7 {[%emt 0:02:33]} 6. d3 {[%emt 0:02:09]} Nf6 {[%emt 0:02:21]} 7. Be3 {[%emt 0:10:57]} Be7 {[%emt 0:00:17]} 8. Nbd2 {[%emt 0:01:31]} O-O {[%emt 0:03:07]} 9. h3 {[%emt 0:12:59]} h6 {[%emt 0:02:41]} 10. Nh4 {[%emt 0:02:34]} Nxe4 {[%emt 0:13:44]} 11. Nxe4 {[%emt 0:00:13]} Bxh4 {[%emt 0:00:11]} 12. Qh5 {[%emt 0:17:01]} Be7 {[%emt 0:02:21]} 13. Bxc5 {[%emt 0:03:35]} f5 {[%emt 0:06:02]} 14. Bxe7 {[%emt 0:00:12]} Qxe7 {[%emt 0:00:03]} 15. Nd2 {[%emt 0:00:45]} Bd7 {[%emt 0:04:25]} 16. Rae1 {[%emt 0:02:35]} Rae8 {[%emt 0:00:46]} 17. Re2 {[%emt 0:04:51]} Qf6 {[%emt 0:07:09]} 18. Rfe1 {[%emt 0:02:52]} Kh7 {[%emt 0:03:42]} 19. Nc4 {[%emt 0:04:42]} e4 {[%emt 0:03:29]} 20. dxe4 {[%emt 0:00:50]} fxe4 {[%emt 0:00:15]} 21. Qc5 {[%emt 0:01:26]} b5 {[%emt 0:09:39]} 22. Qd6 {[%emt 0:14:54]} Be6 {[%emt 0:07:47]} 23. Nd2 {[%emt 0:03:14]} e3 {[%emt 0:04:50]} 24. Ne4 {[%emt 0:03:57]} Qxb2 {[%emt 0:03:44]} 25. Rxe3 {[%emt 0:00:01]} Qxc2 {[%emt 0:02:39]} 26. R3e2 {[%emt 0:01:37]} Qc4 {[%emt 0:03:59]} 27. Nd2 {[%emt 0:02:31]} Qxa2 {[%emt 0:04:46]} 28. Nf3 {[%emt 0:00:50]} Rd8 {[%emt 0:02:02]} 29. Qxe6 {[%emt 0:01:21]} Qxe6 {[%emt 0:00:19]} 30. Rxe6 {[%emt 0:00:02]} c5 {[%emt 0:01:54]} 31. R6e5 {[%emt 0:00:27]} Rc8 {[%emt 0:00:23]} 32. Rc1 {[%emt 0:00:45]} b4 {[%emt 0:00:45]} 33. Rexc5 {[%emt 0:00:54]} Rxc5 {[%emt 0:00:06]} 34. Rxc5 {[%emt 0:00:01]} Rb8 {[%emt 0:00:11]} 35. Nd4 {[%emt 0:02:33]} a6 {[%emt 0:01:51]} 36. Nb3 {[%emt 0:00:38]} Rd8 {[%emt 0:00:13]} 37. Rc4 {[%emt 0:01:27]} Rd1+ {[%emt 0:02:51]} 38. Kh2 {[%emt 0:00:01]} Rb1 {[%emt 0:01:00]} 39. Rxb4 {[%emt 0:00:42]} h5 {[%emt 0:00:16]} 40. Rb7 {[%emt 0:00:33]} Rb2 {[%emt 0:01:20]} 41. f3 {[%emt 0:31:01]} Ra2 {[%emt 0:31:08]} 42. Ra7 {[%emt 0:00:23]} Kh6 {[%emt 0:00:45]} 43. Nd4 {[%emt 0:00:00]} g6 {[%emt 0:00:00]} 44. f4 {[%emt 0:00:00]} 1-0

[Event "Mitropa Cup Women 2024"]
[Site "Apolda"]
[Date "2024.02.16"]
[Round "2.13"]
[White "Hakimifard, Ghazal"]
[Black "Iglesias, Yosha"]
[Result "0-1"]
[ECO "B15"]
[WhiteElo "2243"]
[BlackElo "2260"]
[Annotator "NA RC"]
[PlyCount "100"]
[EventDate "2024.02.15"]
[EventType "team-tourn"]
[EventCountry "GER"]
[SourceTitle "playchess.com"]
[Source "ChessBase"]
[SourceQuality "1"]
[WhiteTeam "Switzerland"]
[BlackTeam "France"]
[WhiteTeamCountry "SUI"]
[BlackTeamCountry "FRA"]
[TimeControl "40/5400+30:1800+30"]

1. e4 {[%emt 0:00:03]} c6 {[%emt 0:00:05]} 2. d4 {[%emt 0:00:04]} d5 {[%emt 0:00:05]} 3. Nd2 {[%emt 0:00:04]} dxe4 {[%emt 0:00:06]} 4. Nxe4 {[%emt 0:00:04]} Nf6 {[%emt 0:00:07]} 5. Nxf6+ {[%emt 0:00:06]} exf6 {[%emt 0:00:07]} 6. c3 {[%emt 0:00:14]} Bd6 {[%emt 0:00:17]} 7. Bd3 {[%emt 0:00:11]} O-O {[%emt 0:00:10]} 8. Qc2 {[%emt 0:00:04]} Re8+ {[%emt 0:00:13]} 9. Ne2 {[%emt 0:00:05]} h5 {[%emt 0:00:13]} 10. O-O {[%emt 0:00:45]} h4 {[%emt 0:01:45]} 11. h3 {[%emt 0:00:04]} Nd7 {[%emt 0:00:37]} 12. Bd2 {[%emt 0:00:05]} Nf8 {[%emt 0:01:28]} 13. Rae1 {[%emt 0:00:17]} Bc7 {[%emt 0:01:51]} 14. c4 {[%emt 0:04:43]} Ne6 {[%emt 0:01:03]} 15. Bc3 {[%emt 0:13:54]} g6 {[%emt 0:15:29]} 16. d5 {[%emt 0:24:58]} Qd6 {[%emt 0:03:29]} 17. f4 {[%emt 0:09:39]} Ng7 {[%emt 0:02:17]} 18. b4 {[%emt 0:06:13]} Bf5 {[%emt 0:04:54]} 19. Rd1 {[%emt 0:05:00]} cxd5 {[%emt 0:09:23]} 20. Bxf5 {[%emt 0:06:40]} Nxf5 {[%emt 0:00:13]} 21. Rxd5 {[%emt 0:01:21]} Qe7 {[%emt 0:02:56]} 22. Rxf5 {[%emt 0:03:07]} Qxe2 {[%emt 0:07:26]} 23. Qxe2 {[%emt 0:00:16]} Rxe2 {[%emt 0:00:07]} 24. Rb5 {[%emt 0:07:21]} Rc2 {[%emt 0:04:10]} 25. Bxf6 {[%emt 0:03:14]} Rxc4 {[%emt 0:03:36]} 26. f5 {[%emt 0:03:39]} Bb6+ {[%emt 0:03:18]} 27. Kh2 {[%emt 0:01:49]} g5 {[%emt 0:00:13]} 28. Bxg5 {[%emt 0:00:55]} Re8 {[%emt 0:00:49]} 29. f6 {[%emt 0:02:30]} Re2 {[%emt 0:01:13]} 30. Bh6 {[%emt 0:02:52]} Kh7 {[%emt 0:01:31]} 31. Bc1 {[%emt 0:01:53]} Bc7+ {[%emt 0:04:32]} 32. Kh1 {[%emt 0:00:26]} Be5 {[%emt 0:00:13]} 33. Rxb7 {[%emt 0:01:59]} Kg6 {[%emt 0:00:11]} 34. Rxa7 {[%emt 0:01:21]} Rf2 {[%emt 0:07:04]} 35. Re1 {[%emt 0:01:07]} Re2 {[%emt 0:26:49]} 36. Rf1 Rf2 {[%emt 0:00:30]} 37. Re1 Rfc2 {[%emt 0:00:00]} 38. Rxe5 {[%emt 0:01:50]} Rxc1+ {[%emt 0:00:00]} 39. Kh2 {[%emt 0:00:00]} Rxb4 {[%emt 0:00:00]} 40. Re2 {[%emt 0:00:51]} Rbb1 {[%emt 0:00:00]} 41. g4 {[%emt 0:01:52]} Rh1+ {[%emt 0:00:00]} 42. Kg2 {[%emt 0:00:00]} Rbg1+ {[%emt 0:00:00]} 43. Kf2 {[%emt 0:04:42]} Rg3 {[%emt 0:00:56]} 44. a4 {[%emt 0:09:20]} Rhxh3 {[%emt 0:00:52]} 45. a5 {[%emt 0:00:16]} Rh2+ {[%emt 0:00:30]} 46. Ke1 {[%emt 0:00:04]} Rh1+ {[%emt 0:00:08]} 47. Kf2 {[%emt 0:00:15]} Rh2+ {[%emt 0:00:48]} 48. Ke1 {[%emt 0:00:06]} Rg1+ {[%emt 0:00:38]} 49. Kd2 {[%emt 0:00:01]} Rxe2+ {[%emt 0:00:16]} 50. Kxe2 {[%emt 0:00:00]} h3 {[%emt 0:00:06]} 0-1